bitfinex-derivatives/quotes_ETHF0:USTF0_20251107
["timestamp","ask_amount","ask_price","bid_price","bid_amount"]
[1762537758062,0.1486,3375.0,3373.5,0.00305756]
[1762537758259,0.1486,3375.0,3374.0,0.48043]
[1762537758563,0.2516,3374.1,3374.0,0.48043]
[1762537758982,0.1486,3373.8,3373.7,0.4849182]
[1762537759459,0.88066,3373.8,3373.7,0.0044482]
[1762537759659,0.48044,3374.0,3373.7,0.0044482]
[1762537759965,0.48044,3374.0,3373.9,0.48045]
[1762537760366,0.48043,3374.1,3374.0,0.48043]
[1762537760667,0.48042,3374.2,3374.1,0.48042]
[1762537761360,0.3486,3374.4,3373.7,0.0044482]
[1762537761762,0.48041,3374.3,3374.2,0.4804]
[1762537761964,0.48043,3374.0,3373.9,0.48043]
[1762537762163,0.48046,3373.8,3373.7,0.4849082]
[1762537762360,0.1486,3373.8,3373.7,0.4849082]
[1762537762768,0.3486,3374.4,3373.7,0.0044482]
[1762537763072,0.48046,3373.8,3373.7,0.4848982]
[1762537763761,0.48043,3374.2,3374.1,0.48042]
[1762537763963,0.3486,3374.4,3373.7,0.0044482]
[1762537764159,0.1486,3374.4,3374.3,0.48039]
[1762537764360,0.4847782,3374.8,3374.7,0.48033]
[1762537764561,0.0044482,3374.8,3374.7,0.48033]
[1762537764956,0.48036,3374.5,3373.8,0.0751]
[1762537765361,0.0044482,3374.8,3373.7,0.0044482]
[1762537765662,0.48043,3374.0,3373.9,0.48043]
[1762537765862,0.48041,3374.2,3374.1,0.48041]
[1762537766062,0.1486,3374.4,3373.7,0.0044482]
[1762537766269,0.86156,3373.8,3373.7,0.0044482]
[1762537766568,0.3811,3373.8,3373.7,0.0044482]
[1762537766774,0.1486,3374.4,3373.7,0.4849182]
[1762537766966,0.3811,3373.8,3373.7,0.0044482]
[1762537768071,0.48044,3374.0,3373.8,0.48045]
[1762537768370,0.48045,3373.9,3373.7,0.4849182]
[1762537768866,0.48045,3373.9,3373.7,0.0044482]
[1762537769070,0.48045,3373.9,3373.7,0.4849182]
[1762537769366,0.1486,3374.4,3373.7,0.0044482]
[1762537769559,0.1486,3374.4,3374.2,0.4804]
[1762537769970,0.0044482,3374.8,3373.7,0.0044482]
[1762537770165,0.48037,3374.5,3374.3,0.48038]
[1762537770762,0.0044482,3374.8,3373.7,0.0044482]
[1762537771273,0.0044482,3374.8,3374.1,0.48042]
[1762537771274,0.48041,3374.2,3374.1,0.48042]
[1762537771568,0.48042,3374.1,3374.0,0.48043]
[1762537771870,0.4804,3374.3,3374.1,0.48041]
[1762537772076,0.0044482,3374.8,3373.7,0.0044482]
[1762537772674,0.48035,3374.6,3374.5,0.48035]
[1762537772866,0.48033,3374.7,3374.6,0.48034]
[1762537773067,0.0044482,3374.8,3374.7,0.48033]
[1762537774361,0.0044482,3374.8,3374.7,0.68943]
[1762537775571,0.0044482,3374.8,3374.7,0.2091]
[1762537775770,0.1489,3374.4,3374.1,1.01564752]
[1762537775966,0.48037,3374.5,3374.4,0.48038]
[1762537776481,0.48037,3374.5,3373.7,1.02009572]
[1762537776482,0.1489,3374.4,3373.7,0.0044482]
[1762537776668,0.62936,3373.8,3373.7,0.0044482]
[1762537777163,0.62936,3373.8,3373.7,0.4849182]
[1762537777566,0.62936,3373.8,3373.7,0.0044482]
[1762537777767,0.48046,3373.8,3373.7,0.4849182]
[1762537778471,0.1489,3374.4,3373.7,0.4849082]
[1762537778771,0.48042,3374.2,3374.1,0.48041]
[1762537779274,0.1489,3374.4,3373.7,0.0044482]
[1762537779471,0.48045,3373.9,3373.8,0.48046]
[1762537779675,0.1489,3374.4,3373.7,0.0044482]
[1762537779866,0.48046,3373.8,3373.7,0.0044482]
[1762537780066,0.71266,3373.8,3373.7,0.0044482]
[1762537780374,0.48046,3373.8,3373.7,0.0044482]
[1762537780569,0.1489,3374.4,3373.7,0.0044482]
[1762537780768,0.1489,3374.4,3373.9,0.48044]
[1762537780972,0.62928,3374.4,3374.3,0.48039]
[1762537781476,0.48037,3374.5,3374.4,0.48037]
[1762537781875,0.0044482,3374.8,3373.7,0.0044482]
[1762537782175,0.4847782,3374.8,3374.7,0.48033]
[1762537782575,0.48037,3374.5,3374.4,0.48036]
[1762537783474,0.0044482,3374.8,3373.7,0.0044482]
[1762537783772,0.48039,3374.3,3374.2,0.48039]
[1762537783979,0.0044482,3374.8,3373.7,0.0044482]
[1762537784172,0.48038,3374.4,3373.7,0.0044482]
[1762537784373,0.48036,3374.6,3374.4,0.48036]
[1762537784573,0.48035,3374.7,3374.6,0.48033]
[1762537785472,0.4847682,3374.8,3374.7,0.48033]
[1762537785972,0.0044482,3374.8,3374.7,0.48033]
[1762537786672,0.0044482,3374.8,3374.7,0.68953]
[1762537788073,0.00215672,3375.4,3375.3,0.68505]
[1762537788274,0.48028,3375.1,3374.9,0.4803]
[1762537788476,0.1498,3375.0,3374.3,1.01564752]
[1762537788670,0.00215672,3375.4,3375.3,0.48025]
[1762537788867,0.48238672,3375.4,3375.3,0.48025]
[1762537789077,0.00215672,3375.4,3375.3,0.48025]
[1762537789577,0.48238672,3375.4,3375.3,0.48025]
[1762537789778,0.00215672,3375.4,3375.3,0.68505]
[1762537791182,0.48025,3375.3,3374.7,1.01564752]
[1762537791389,0.00215672,3375.4,3375.0,0.2048]
[1762537791582,0.00215672,3375.4,3374.5,1.01564752]
[1762537791983,0.00215672,3375.4,3375.0,0.48028]
[1762537792190,0.48026,3375.3,3375.2,0.48026]
[1762537792986,0.48028,3375.1,3375.0,0.48028]
[1762537793393,0.48025,3375.3,3375.2,0.48026]
[1762537793596,0.00215672,3375.4,3375.3,0.48025]
[1762537793893,0.00215672,3375.4,3374.5,1.01564752]
[1762537794192,0.00215672,3375.4,3375.3,0.48025]
[1762537794395,0.00215672,3375.4,3375.3,0.68505]
[1762537798105,0.00215672,3375.4,3375.3,6.61065]
[1762537798299,0.1489,3376.1,3376.0,0.48015]
[1762537798989,0.62903,3376.1,3376.0,0.48015]
[1762537799194,0.48016,3376.0,3375.9,0.48015]
[1762537799394,0.48231861,3376.0,3375.9,0.48377016]
[1762537799902,0.48231861,3376.0,3375.9,0.00362016]
[1762537800202,0.00215861,3376.0,3375.9,0.48378016]
[1762537800590,0.72010861,3376.0,3375.9,0.00362016]
[1762537800997,0.72010861,3376.0,3374.4,0.1296]
[1762537800998,0.1424,3375.0,3374.9,0.48029]
[1762537801306,0.1424,3375.6,3375.5,0.48022]
[1762537801498,0.48017,3375.9,3375.8,0.48018]
[1762537801799,0.00215861,3376.0,3375.9,0.48016]
[1762537802005,0.48230861,3376.0,3375.9,0.48373315]
[1762537802296,0.72010861,3376.0,3375.9,0.00357315]
[1762537802501,0.71799,3375.7,3375.6,0.0044482]
[1762537803403,0.91799,3375.7,3375.6,0.0044482]
[1762537803606,0.91799,3375.7,3375.6,0.00666278]
[1762537803816,8.91799,3375.7,3375.6,0.00666278]
[1762537804700,0.48031,3374.9,3374.8,0.48032]
[1762537805098,0.48027,3375.3,3375.2,0.48026]
[1762537805493,0.1424,3375.6,3374.4,0.76223456]
[1762537805494,0.48029,3375.2,3375.1,0.48027]
[1762537805698,0.4803,3375.1,3375.0,0.48028]
[1762537805900,0.4803,3375.1,3375.0,0.48343851]
[1762537805901,0.7181,3375.1,3375.0,0.48343851]
[1762537806307,0.7181,3375.1,3375.0,0.00315851]
[1762537807199,0.4803,3374.9,3374.8,0.0044482]
[1762537807404,0.7181,3374.9,3374.8,0.0044482]
[1762537807805,0.7181,3374.9,3373.4,1.52347129]
[1762537807806,0.48046,3373.8,3373.7,0.76223456]
[1762537808113,0.48051,3373.5,3373.4,0.48052]
[1762537808310,0.1424,3373.8,3373.5,0.48049]
[1762537808311,0.48049,3373.6,3373.5,0.48049]
[1762537808606,0.86075,3373.2,3373.1,0.00220361]
[1762537809004,0.86075,3373.2,3372.2,0.76223456]
[1762537809005,0.2378,3372.9,3372.2,0.48068]
[1762537809209,0.62303,3372.6,3372.4,0.48066]
[1762537809501,0.2,3373.1,3372.0,0.89983456]
[1762537809702,0.2,3373.1,3372.0,0.76223456]
[1762537809908,0.48061,3372.8,3371.9,0.76223456]
[1762537810102,0.48061,3372.8,3372.0,0.0044482]
[1762537810299,0.48061,3372.8,3372.5,0.48064]
[1762537810501,0.48061,3372.8,3372.0,0.0044482]
[1762537810904,0.2,3373.1,3372.0,0.0044482]
[1762537811107,0.2,3373.1,3372.0,0.1420482]
[1762537811906,0.2,3373.1,3372.9,0.48059]
[1762537812109,0.1424,3373.2,3372.9,0.48058]
[1762537812308,0.00296739,3373.6,3373.5,0.2203]
[1762537812505,0.48042,3374.1,3373.8,0.48046]
[1762537812700,0.1424,3373.8,3372.9,0.76223456]
[1762537812904,0.1424,3373.8,3373.6,0.48049]
[1762537813504,0.14508394,3373.8,3373.6,0.48049]
[1762537814407,0.14508394,3373.8,3373.6,0.48048]
[1762537815116,0.00268394,3373.8,3373.7,0.70077]
[1762537815909,0.00268394,3373.8,3373.7,0.48047]
[1762537816129,0.62554394,3373.8,3373.7,0.48047]
[1762537816308,0.2378,3373.5,3373.4,0.0044482]
[1762537816513,0.7183,3373.5,3373.4,0.0044482]
[1762537816813,0.2378,3373.5,3373.4,0.4849682]
[1762537817018,0.7183,3373.5,3373.4,0.0044482]
[1762537817221,0.7183,3373.5,3372.0,0.1376]
[1762537817222,8.2378,3373.5,3372.1,0.76223456]
[1762537817512,0.1424,3372.6,3372.5,0.48064]
[1762537817710,0.1424,3372.6,3371.8,0.76585925]
[1762537817916,0.1424,3372.6,3372.5,0.48065]
[1762537818316,0.1424,3373.2,3373.1,0.48056]
[1762537818518,0.14508394,3373.8,3373.3,0.48053]
[1762537818812,0.14508394,3373.8,3372.2,0.0044482]
[1762537818813,0.48048,3373.7,3373.6,0.48049]
[1762537819217,0.62554394,3373.8,3373.7,0.48047]
[1762537819520,0.00268394,3373.8,3373.7,0.48047]
[1762537821716,0.00268394,3373.8,3373.7,0.70077]
[1762537822518,0.00268394,3373.8,3373.7,0.48047]
[1762537823119,0.00268394,3373.8,3373.7,0.70077]
[1762537823916,0.00268394,3373.8,3373.7,0.48047]
[1762537824917,0.00268394,3373.8,3373.7,0.70077]
[1762537826017,0.48032,3374.8,3374.7,0.48033]
[1762537826318,0.4804,3374.3,3373.8,0.95925778]
[1762537826522,0.7215,3374.3,3374.2,0.48041]
[1762537826718,0.2411,3374.3,3374.2,0.48041]
[1762537826919,0.48043,3374.1,3374.0,0.48042]
[1762537827113,0.00362369,3374.3,3374.0,0.48042]
[1762537827114,0.2411,3374.2,3374.1,0.47880778]
[1762537827422,0.48401369,3374.3,3374.2,0.48041]
[1762537828019,0.72151,3374.2,3374.1,0.47880778]
[1762537828218,0.2411,3374.1,3374.0,0.00382338]
[1762537828424,0.72152,3374.1,3374.0,0.00382338]
[1762537828624,0.72164,3373.4,3373.3,0.48053]
[1762537829123,0.4805,3373.6,3372.6,0.76223456]
[1762537829324,0.7216,3373.6,3373.5,0.48049]
[1762537829547,0.7216,3373.6,3373.5,0.48302253]
[1762537829919,0.7216,3373.6,3373.5,0.00253253]
[1762537830122,0.7216,3373.6,3373.5,0.48304253]
[1762537830318,0.7216,3373.6,3373.5,0.00253253]
[1762537831026,0.2411,3373.6,3373.5,0.00253253]
[1762537831424,0.2411,3373.6,3373.4,0.48052]
[1762537831425,0.72163,3373.3,3373.2,0.0044482]
[1762537832331,0.1411,3372.6,3372.5,0.48065]
[1762537832623,0.1411,3372.6,3372.5,0.48323064]
[1762537832624,0.86283,3372.6,3372.5,0.48323064]
[1762537832821,0.86283,3372.6,3372.5,0.00258064]
[1762537835030,0.86283,3372.6,3372.5,0.48323064]
[1762537835229,0.86283,3372.6,3372.5,0.00258064]
[1762537835535,0.86283,3372.6,3372.5,0.48323064]
[1762537835536,0.3822,3372.6,3372.5,0.48323064]
[1762537835725,0.1411,3372.6,3372.5,0.48323064]
[1762537836429,0.3822,3372.6,3372.5,0.00258064]
[1762537836627,0.3822,3372.6,3372.5,0.48323064]
[1762537837330,0.86283,3372.6,3372.5,0.00258064]
[1762537838324,0.1411,3372.6,3371.6,1.14025956]
[1762537838524,0.1411,3371.4,3371.1,0.76223456]
[1762537838726,0.1411,3371.4,3370.7,1.52347129]
[1762537838727,0.86302,3371.4,3370.7,0.76223456]
[1762537838923,0.86302,3371.4,3371.3,0.48082]
[1762537839134,0.1411,3370.2,3369.8,0.76223456]
[1762537839322,0.2411,3369.9,3369.8,0.00372816]
[1762537839730,0.34361591,3370.2,3369.8,0.00372816]
[1762537840029,0.34361591,3370.2,3369.9,0.48101]
[1762537840230,0.34361591,3370.2,3369.8,0.00372816]
[1762537840429,0.48101,3370.0,3369.8,0.00372816]
[1762537840627,0.34361591,3370.2,3370.0,0.481]
[1762537841135,0.00251591,3370.2,3370.1,0.2317]
[1762537841431,0.00251591,3370.2,3368.7,0.76238133]
[1762537841432,0.2448,3368.9,3368.7,0.76238133]
[1762537841624,0.147,3369.0,3368.7,0.48118]
[1762537841822,0.62815,3369.0,3368.1,0.48127]
[1762537842026,0.48117,3368.9,3368.3,0.48124]
[1762537842236,0.48118,3368.8,3368.2,0.48125]
[1762537842429,0.4812,3368.7,3368.2,0.48448087]
[1762537842826,0.147,3368.4,3368.2,0.00323087]
[1762537843527,0.147,3368.4,3368.2,0.48448087]
[1762537843726,0.2448,3368.3,3366.7,0.23704049]
[1762537844036,0.147,3368.4,3366.7,0.23704049]
[1762537844037,0.147,3367.0,3366.7,0.23704049]
[1762537844332,0.147,3367.0,3366.7,0.71850049]
[1762537844525,0.147,3367.0,3366.8,0.48145]
[1762537844835,0.14948998,3367.0,3366.8,0.48524822]
[1762537845036,0.0044552,3367.2,3367.0,0.48143]
[1762537845532,0.147,3368.4,3366.8,0.00379822]
[1762537845735,0.147,3368.4,3368.2,0.48125]
[1762537846232,0.147,3367.7,3366.8,0.00379822]
[1762537846532,0.0044552,3367.6,3367.5,0.48136]
[1762537846732,0.0044552,3367.6,3367.5,0.72646]
[1762537846929,0.00356456,3368.4,3367.5,8.0]
[1762537847132,0.00356456,3368.4,3368.2,0.48126]
[1762537847332,0.00356456,3368.4,3367.7,0.1439]
[1762537847530,0.00356456,3368.4,3368.3,0.48125]
[1762537847832,0.00356456,3368.4,3368.3,0.72635]
[1762537848133,0.00356456,3368.4,3367.0,0.1061]
[1762537848134,5.9376,3368.2,3367.0,0.1439]
[1762537848431,0.1,3368.2,3368.0,0.48128]
[1762537848633,5.9376,3367.9,3367.8,0.48132]
[1762537848841,1.97459691,3368.6,3368.4,0.48122]
[1762537849031,1.97830034,3368.6,3368.4,0.48341238]
[1762537849230,0.00370343,3368.6,3368.4,0.48341238]
[1762537849528,1.97459691,3368.5,3368.4,0.48341238]
[1762537849733,7.91219691,3368.5,3368.4,0.48341238]
[1762537850129,5.9376,3368.5,3368.4,0.48341238]
[1762537852029,5.9376,3368.5,3368.4,0.00219238]
[1762537852338,7.91219691,3368.5,3368.4,0.00219238]
[1762537852630,0.00370343,3368.6,3368.5,0.48122]
[1762537852834,5.94130343,3368.6,3368.5,0.48122]
[1762537853635,0.00370343,3368.6,3368.5,0.72632]
[1762537853837,5.94130343,3368.6,3368.5,0.72632]
[1762537854031,0.00370343,3368.6,3368.5,0.72632]
[1762537854231,5.94130343,3368.6,3368.5,0.72632]
[1762537854537,0.00370343,3368.6,3368.5,0.72632]
[1762537855539,0.00370343,3368.6,3368.5,0.48122]
[1762537855739,5.94130343,3368.6,3368.5,0.48122]
[1762537856634,5.94130343,3368.6,3368.5,0.72632]
[1762537856835,0.13764376,3368.6,3368.5,0.72632]
[1762537857032,0.58106,3369.7,3369.4,0.48108]
[1762537857232,1.97459691,3369.6,3369.4,0.48108]
[1762537857440,0.48097,3370.3,3370.0,0.481]
[1762537857743,0.1,3370.2,3369.1,0.138]
[1762537857938,0.0044552,3370.0,3369.7,0.48104]
[1762537858131,0.2391,3369.8,3369.1,0.138]
[1762537858336,0.48105,3369.7,3369.5,0.48107]
[1762537858535,0.72015,3369.7,3369.6,0.48106]
[1762537858741,1.97459691,3369.7,3369.6,0.48106]
[1762537859235,0.0044552,3370.0,3369.9,0.72062]
[1762537859444,0.0044552,3370.0,3369.9,0.48102]
[1762537860331,1.97905211,3370.0,3369.9,0.48102]
[1762537860531,0.0044552,3370.0,3369.9,0.72062]
[1762537860734,1.97905211,3370.0,3369.9,0.48102]
[1762537860946,0.0044552,3370.0,3369.9,0.72062]
[1762537863336,0.0044552,3370.0,3368.4,0.14609238]
[1762537863337,0.72018,3369.5,3368.4,0.14609238]
[1762537863536,0.2391,3369.3,3369.2,0.4811]
[1762537863748,0.0755,3369.6,3368.4,0.14609238]
[1762537863749,0.72019,3369.4,3369.3,0.4811]
[1762537863941,0.4811,3369.3,3369.1,0.48113]
[1762537864140,0.1755,3369.6,3369.1,0.48113]
[1762537864339,0.2391,3369.1,3368.4,0.14609238]
[1762537864542,0.2391,3369.1,3368.4,0.00219238]
[1762537864740,0.1755,3369.6,3367.0,0.138]
[1762537864741,0.2391,3368.3,3367.0,0.138]
[1762537864947,0.1755,3369.6,3367.0,0.138]
[1762537865150,0.48127,3368.2,3367.0,0.138]
[1762537865335,0.48123,3368.4,3368.0,0.48129]
[1762537865540,1.97459691,3369.4,3368.5,0.48122]
[1762537865743,0.1755,3369.6,3368.5,0.48506818]
[1762537865744,0.48118,3368.8,3368.5,0.48506818]
[1762537865936,0.2391,3368.6,3368.3,0.0044552]
[1762537866148,0.48129,3368.0,3367.6,0.48134]
[1762537866345,0.0735,3368.4,3368.0,0.48129]
[1762537866545,0.0735,3368.4,3367.9,0.48129]
[1762537866546,0.48125,3368.3,3367.9,0.48129]
[1762537866746,1.48498353,3368.3,3368.1,0.48126]
[1762537866938,0.0044552,3369.0,3367.7,0.138]
[1762537867145,0.2391,3368.2,3368.1,0.00240595]
[1762537867547,1.72408353,3368.2,3368.1,0.00240595]
[1762537868060,1.48498353,3368.2,3368.1,0.00240595]
[1762537868247,0.1,3368.9,3368.3,0.48124]
[1762537868456,0.48125,3368.3,3368.1,0.48366595]
[1762537868747,0.48122,3368.5,3368.2,0.48126]
[1762537868948,0.4812,3368.7,3368.3,0.48124]
[1762537869144,0.48122,3368.5,3368.1,0.48366595]
[1762537869341,0.2391,3368.2,3368.1,0.00240595]
[1762537869743,0.2391,3368.2,3366.6,1.8966352]
[1762537869744,0.1443,3368.4,3366.6,0.03848776]
[1762537869947,0.62574,3367.0,3366.4,0.48151]
[1762537870153,0.62574,3367.0,3365.6,0.138]
[1762537870154,0.1487552,3367.0,3365.6,0.138]
[1762537870346,0.1,3366.9,3365.6,0.138]
[1762537870647,0.1,3366.9,3365.9,0.48159]
[1762537870848,0.10378683,3366.9,3365.9,0.00327111]
[1762537871148,0.10378683,3366.9,3366.1,0.48156]
[1762537871443,0.10378683,3366.9,3366.2,0.48154]
[1762537871651,0.10378683,3366.9,3365.9,0.00327111]
[1762537871838,0.10378683,3366.9,3366.7,0.48147]
[1762537872043,0.00378683,3366.9,3365.9,0.00327111]
[1762537872544,0.58523683,3366.9,3366.5,0.4815]
[1762537872752,0.10378683,3366.9,3365.9,0.00327111]
[1762537872943,0.58523683,3366.9,3365.9,0.00327111]
[1762537873144,0.10378683,3366.9,3365.9,0.00327111]
[1762537873345,0.58523683,3366.9,3365.9,0.00327111]
[1762537873551,0.58523683,3366.9,3366.6,0.48148]
[1762537873752,0.10378683,3366.9,3366.7,0.48147]
[1762537874154,0.58523683,3366.9,3366.7,0.48147]
[1762537874355,0.10378683,3366.9,3365.9,0.00327111]
[1762537874556,0.58523683,3366.9,3365.9,0.00327111]
[1762537874755,0.10378683,3366.9,3366.7,0.48146]
[1762537874952,0.00378683,3366.9,3366.7,0.48146]
[1762537875157,0.0044552,3367.0,3366.9,0.48145]
[1762537875455,0.48138,3367.4,3367.1,0.48141]
[1762537875661,0.2443,3367.7,3367.0,0.48143]
[1762537875855,0.48145,3366.9,3366.3,0.138]
[1762537876061,0.48142,3367.2,3366.9,0.48144]
[1762537876257,0.2391,3367.0,3366.9,0.48144]
[1762537876455,0.2391,3367.0,3366.8,0.48146]
[1762537876656,0.48145,3366.9,3366.7,0.0044552]
[1762537876855,0.48145,3366.9,3366.7,0.4859252]
[1762537877056,0.48145,3366.9,3366.7,0.0044552]
[1762537877355,0.2391,3366.8,3366.7,0.0044552]
[1762537877660,0.00218887,3367.2,3366.7,0.0044552]
[1762537877857,0.48358887,3367.2,3366.7,0.0044552]
[1762537878059,0.00218887,3367.2,3366.7,0.0044552]
[1762537878254,0.2391,3367.0,3366.9,0.48144]
[1762537878450,0.2391,3367.0,3366.7,0.4859152]
[1762537878654,0.72056,3366.8,3366.7,0.0044552]
[1762537878960,0.48360887,3367.2,3366.7,0.0044552]
[1762537879152,0.00218887,3367.2,3366.7,0.0044552]
[1762537879354,0.00218887,3367.2,3367.1,0.48142]
[1762537879750,0.3834,3368.4,3368.3,0.48125]
[1762537879966,0.48126,3368.2,3368.0,0.48128]
[1762537880354,0.1,3368.4,3367.0,0.138]
[1762537880355,0.1443,3368.4,3367.7,0.48133]
[1762537880860,0.48131,3367.9,3367.8,0.48132]
[1762537881161,0.00682614,3368.4,3368.2,0.48125]
[1762537881352,0.1443,3369.8,3367.7,0.14099778]
[1762537881353,0.09856852,3369.2,3367.7,0.14099778]
[1762537881555,0.72022,3369.2,3369.0,0.48114]
[1762537881756,0.2391,3369.2,3369.0,0.48114]
[1762537881953,0.2391,3369.2,3368.8,0.48116]
[1762537882154,0.48116,3369.0,3368.6,0.4812]
[1762537882359,0.00286776,3369.0,3368.9,0.48115]
[1762537882856,0.1443,3370.5,3369.1,0.138]
[1762537883053,0.48096,3370.3,3370.1,0.48098]
[1762537883257,0.48096,3370.3,3369.1,0.138]
[1762537883258,0.1,3370.3,3369.1,0.138]
[1762537883657,0.1,3370.3,3370.1,0.48098]
[1762537883858,0.10244043,3370.3,3370.1,0.48323129]
[1762537884266,0.0044552,3370.5,3370.4,0.48095]
[1762537884471,0.1443,3371.9,3370.1,0.00225129]
[1762537884974,0.48088,3370.9,3370.1,0.00225129]
[1762537885268,0.00383401,3370.9,3370.1,0.00225129]
[1762537885464,0.00383401,3370.9,3370.2,0.0044552]
[1762537885667,0.00828921,3370.9,3370.7,0.4809]
[1762537886770,0.0044552,3370.9,3370.7,0.4809]
[1762537886957,0.1443,3372.6,3370.7,8.0]
[1762537887158,0.1443,3372.6,3370.4,0.1997]
[1762537887361,0.1443,3372.6,3371.2,0.48083]
[1762537887672,0.1443,3372.6,3370.4,0.1997]
[1762537887872,0.00287941,3371.7,3370.4,0.1997]
[1762537888076,0.48363941,3371.7,3371.4,0.4808]
[1762537888273,0.00287941,3371.7,3371.5,0.48079]
[1762537888771,0.4808,3371.5,3370.4,0.1997]
[1762537889071,0.00287941,3371.7,3370.4,0.1997]
[1762537889276,0.4808,3371.5,3371.3,0.48081]
[1762537889575,0.4808,3371.5,3370.2,0.0044552]
[1762537889576,0.00287941,3371.7,3370.2,0.0044552]
[1762537889770,0.00287941,3371.7,3370.5,0.48093]
[1762537889771,0.48088,3370.9,3370.5,0.48093]
[1762537889970,0.00287941,3371.7,3370.6,0.48091]
[1762537890175,0.00287941,3371.7,3370.2,0.0044552]
[1762537890375,0.48086,3371.1,3370.7,0.48089]
[1762537890579,0.48081,3371.4,3370.2,0.0044552]
[1762537890874,0.48083,3371.3,3370.9,0.48087]
[1762537891177,0.48085,3371.1,3370.2,0.0044552]
[1762537891378,0.00287941,3371.7,3370.2,0.0044552]
[1762537891574,0.00287941,3371.7,3370.4,0.48094]
[1762537891774,0.00287941,3371.7,3370.2,0.0044552]
[1762537891775,0.48091,3370.7,3370.5,0.48093]
[1762537891978,0.48089,3370.9,3370.6,0.48091]
[1762537892166,0.48086,3371.0,3370.2,0.0044552]
[1762537892371,0.1,3371.0,3370.8,0.48088]
[1762537892572,0.00287941,3371.7,3371.2,0.48082]
[1762537892772,0.00287941,3371.7,3370.5,0.1997]
[1762537892972,0.58363941,3371.7,3371.5,0.48078]
[1762537893175,0.48078,3371.6,3370.5,0.1997]
[1762537893374,0.48079,3371.5,3371.3,0.48082]
[1762537893577,0.48081,3371.4,3370.5,0.1997]
[1762537893772,0.10287941,3371.7,3370.5,0.1997]
[1762537893973,0.48087,3371.0,3370.2,0.0044552]
[1762537894177,0.48088,3370.9,3370.5,0.48092]
[1762537894478,0.48087,3371.0,3370.7,0.4809]
[1762537894667,0.10287941,3371.7,3370.2,0.0044552]
[1762537894871,0.10287941,3371.7,3370.6,0.48091]
[1762537895067,0.48086,3371.0,3370.2,0.0044552]
[1762537895276,0.10287941,3371.7,3370.2,0.0044552]
[1762537895477,0.10287941,3371.7,3370.7,0.48089]
[1762537895775,0.80807,3370.9,3370.8,0.48089]
[1762537895972,0.48089,3370.8,3370.7,0.4809]
[1762537896174,0.3272,3370.9,3370.8,0.48089]
[1762537896673,0.10287941,3371.7,3371.2,0.48082]
[1762537896877,0.4808,3371.4,3371.3,0.48082]
[1762537897180,0.10287941,3371.7,3371.2,0.48083]
[1762537897181,0.48082,3371.3,3371.2,0.48083]
[1762537897371,0.4808,3371.4,3371.3,0.48081]
[1762537897773,0.48079,3371.5,3371.4,0.4808]
[1762537897971,0.00280394,3372.4,3372.3,0.48067]
[1762537898170,0.00280394,3372.4,3371.8,0.48074]
[1762537898370,0.1,3372.3,3371.2,0.1997]
[1762537898576,0.80796,3371.7,3371.6,0.48076]
[1762537898877,0.48079,3371.5,3371.0,0.48086]
[1762537899186,0.187,3371.9,3370.9,0.00444794]
[1762537899384,0.48086,3371.0,3370.9,0.00444794]
[1762537899584,0.48081,3371.4,3370.9,0.00444794]
[1762537899884,0.187,3371.9,3370.9,0.00444794]
[1762537900073,0.1,3371.8,3371.2,0.48082]
[1762537900274,0.48086,3371.0,3370.9,0.00444794]
[1762537900973,0.48085,3371.1,3371.0,0.48085]
[1762537901170,0.48085,3371.1,3371.0,0.48086]
[1762537901575,0.48083,3371.3,3371.1,0.48083]
[1762537901884,0.1,3371.8,3371.2,0.48082]
[1762537902079,0.48076,3371.7,3370.9,0.00444794]
[1762537902278,0.1,3371.8,3370.9,0.00444794]
[1762537902482,0.1,3371.8,3369.1,0.138]
[1762537902483,0.1896,3371.2,3369.1,0.138]
[1762537902686,0.48096,3370.3,3370.1,0.48324129]
[1762537902982,0.48096,3370.3,3370.1,0.00225129]
[1762537903185,0.3138,3370.2,3370.1,0.00225129]
[1762537903781,0.4138,3370.2,3370.1,0.00225129]
[1762537903980,0.00442372,3370.5,3370.1,0.00225129]
[1762537904379,0.00442372,3370.5,3370.3,0.48096]
[1762537904579,0.00442372,3370.5,3370.4,0.3149]
[1762537905677,0.187,3371.9,3370.5,0.48092]
[1762537905880,0.48081,3371.4,3370.5,0.1759]
[1762537906079,0.187,3371.9,3370.1,0.00225129]
[1762537906279,0.48088,3370.9,3370.7,0.4809]
[1762537906478,0.48086,3371.1,3370.1,0.00225129]
[1762537906679,0.48086,3371.0,3370.8,0.48087]
[1762537906883,0.1896,3371.2,3370.1,0.00225129]
[1762537907085,0.187,3371.9,3371.2,0.48083]
[1762537907287,1.05979786,3373.1,3370.1,0.00225129]
[1762537907288,1.05979786,3373.0,3370.5,0.1759]
[1762537907589,0.1443,3373.3,3370.5,0.1759]
[1762537907590,0.48061,3372.8,3372.2,0.48068]
[1762537907883,0.48062,3372.7,3372.2,0.48068]
[1762537908075,0.1443,3373.3,3372.0,0.00444794]
[1762537908279,0.1443,3373.3,3372.2,0.48069]
[1762537908480,0.48064,3372.6,3372.2,0.48069]
[1762537908881,0.4806,3372.9,3372.2,0.48069]
[1762537909082,0.1443,3373.3,3372.2,0.48069]
[1762537909277,0.1443,3373.3,3372.0,0.00444794]
[1762537909278,0.1443,3373.3,3373.2,0.48055]
[1762537909480,0.1896,3374.0,3373.8,0.48046]
[1762537909679,0.48042,3374.1,3373.7,0.48047]
[1762537909887,0.48039,3374.3,3373.9,0.48044]
[1762537910093,0.0993,3374.0,3373.6,0.00444794]
[1762537910281,0.00278357,3374.0,3373.7,0.48047]
[1762537910590,0.00278357,3374.0,3373.8,0.48046]
[1762537910785,0.48322357,3374.0,3373.8,0.48046]
[1762537910983,0.00278357,3374.0,3373.8,0.48046]
[1762537911290,0.00278357,3374.0,3373.6,0.00693239]
[1762537911680,0.00278357,3374.0,3373.8,0.48045]
[1762537912484,0.00278357,3374.0,3373.6,0.00693239]
[1762537912485,0.28740226,3375.4,3374.5,0.48036]